[Event "2nd Hersonissos Open 2018"]
[Site "Hersonissos"]
[Date "2018.06.21"]
[Round "6"]
[White "Angermuende, Dirk"]
[Black "Haverkamp, Klaus"]
[Result "1/2-1/2"]
[ECO "B22"]
[WhiteElo "1966"]
[BlackElo "1921"]
[Annotator "NA"]
[PlyCount "35"]
[EventDate "2018.06.16"]
[EventType "swiss"]
[EventCountry "GRE"]
[SourceTitle "playchess.com"]
[Source "ChessBase"]
[SourceQuality "1"]
[TimeControl "5400+30"]

1. e4 {[%emt 0:00:00]} c5 {[%emt 0:00:29]} 2. c3 {[%emt 0:00:00]} Nf6 {[%emt 0:01:00]} 3. e5 {[%emt 0:00:00]} Nd5 {[%emt 0:00:59]} 4. d4 {[%emt 0:00:00]} cxd4 {[%emt 0:00:29]} 5. Qxd4 {[%emt 0:00:07]} e6 {[%emt 0:02:33]} 6. Nf3 {[%emt 0:00:08]} Nc6 {[%emt 0:01:32]} 7. Qe4 {[%emt 0:00:16]} f5 {[%emt 0:02:28]} 8. exf6 {[%emt 0:00:40]} Nxf6 {[%emt 0:01:44]} 9. Qh4 {[%emt 0:00:53]} Be7 {[%emt 0:03:08]} 10. Bd3 {[%emt 0:00:31]} O-O {[%emt 0:07:16]} 11. Bg5 {[%emt 0:00:31]} h6 {[%emt 0:05:16]} 12. Bxh6 {[%emt 0:00:47]} gxh6 {[%emt 0:01:03]} 13. Qg3+ {[%emt 0:00:35]} Kh8 {[%emt 0:00:08]} 14. Qg6 {[%emt 0:00:10]} Qe8 {[%emt 0:01:59]} 15. Qxh6+ {[%emt 0:00:15]} Kg8 {[%emt 0:00:07]} 16. Qg5+ {[%emt 0:00:10]} Kh8 {[%emt 0:00:11]} 17. Qh6+ {[%emt 0:00:08]} Kg8 {[%emt 0:00:14]} 18. Qg5+ {[%emt 0:00:07]} 1/2-1/2

[Event "2nd Hersonissos Open 2018"]
[Site "Hersonissos"]
[Date "2018.06.21"]
[Round "6"]
[White "Stefanov, Evtim"]
[Black "Iminov, Bachtiar"]
[Result "0-1"]
[ECO "B25"]
[WhiteElo "1959"]
[BlackElo "1842"]
[Annotator "NA"]
[PlyCount "118"]
[EventDate "2018.06.16"]
[EventType "swiss"]
[EventCountry "GRE"]
[SourceTitle "playchess.com"]
[Source "ChessBase"]
[SourceQuality "1"]
[TimeControl "5400+30"]

1. e4 {[%emt 0:00:00]} c5 {[%emt 0:00:42]} 2. Nc3 {[%emt 0:01:55]} g6 {[%emt 0:00:35]} 3. g3 {[%emt 0:00:07]} Bg7 {[%emt 0:00:06]} 4. d3 {[%emt 0:00:07]} Nc6 {[%emt 0:00:09]} 5. Bg2 {[%emt 0:00:22]} d6 6. f4 {[%emt 0:01:24]} Rb8 {[%emt 0:01:36]} 7. Nf3 {[%emt 0:00:25]} b5 {[%emt 0:00:25]} 8. O-O {[%emt 0:00:52]} Bg4 {[%emt 0:05:01]} 9. h3 {[%emt 0:08:51]} Bxf3 {[%emt 0:01:57]} 10. Qxf3 {[%emt 0:02:54]} Nd4 {[%emt 0:01:52]} 11. Qf2 {[%emt 0:01:01]} b4 {[%emt 0:02:53]} 12. Nd1 {[%emt 0:00:44]} Nf6 {[%emt 0:00:41]} 13. c3 {[%emt 0:01:45]} bxc3 {[%emt 0:01:47]} 14. bxc3 {[%emt 0:00:06]} Nb5 {[%emt 0:00:22]} 15. e5 {[%emt 0:02:47]} Nd7 {[%emt 0:01:29]} 16. a4 {[%emt 0:00:30]} Nc7 {[%emt 0:00:30]} 17. exd6 exd6 {[%emt 0:01:22]} 18. Re1+ {[%emt 0:01:23]} Ne6 {[%emt 0:05:23]} 19. f5 {[%emt 0:00:21]} gxf5 {[%emt 0:00:11]} 20. Qxf5 {[%emt 0:00:08]} Qf6 {[%emt 0:01:35]} 21. Be4 {[%emt 0:06:04]} Qxf5 {[%emt 0:16:40]} 22. Bxf5 {[%emt 0:00:30]} Ne5 {[%emt 0:00:30]} 23. Kg2 O-O 24. Ba3 {[%emt 0:07:57]} Rfe8 {[%emt 0:05:13]} 25. Nf2 {[%emt 0:07:09]} Nxd3 {[%emt 0:06:16]} 26. Nxd3 {[%emt 0:02:56]} Bxc3 {[%emt 0:01:20]} 27. Rab1 {[%emt 0:11:23]} Bxe1 {[%emt 0:00:51]} 28. Rxb8 {[%emt 0:00:35]} Rxb8 {[%emt 0:01:15]} 29. Nxe1 {[%emt 0:00:06]} Nd4 {[%emt 0:00:53]} 30. Bd3 {[%emt 0:04:21]} Rb3 {[%emt 0:10:00]} 31. Bc1 {[%emt 0:00:19]} c4 {[%emt 0:00:07]} 32. Be4 {[%emt 0:01:41]} Ne2 33. Bh6 {[%emt 0:00:30]} Rxg3+ {[%emt 0:08:37]} 34. Kf2 {[%emt 0:12:42]} Rxh3 {[%emt 0:00:18]} 35. Be3 {[%emt 0:00:12]} Nc3 {[%emt 0:02:24]} 36. Bc2 {[%emt 0:01:14]} a6 {[%emt 0:06:16]} 37. Nf3 {[%emt 0:01:26]} Nd5 {[%emt 0:00:50]} 38. Bd4 {[%emt 0:01:07]} Nb4 39. Be4 {[%emt 0:00:30]} d5 40. Bf5 {[%emt 0:00:30]} Rh5 41. Bc8 {[%emt 0:00:30]} Rh1 {[%emt 0:00:00]} 42. a5 {[%emt 0:00:00]} Nc6 {[%emt 0:00:00]} 43. Bc3 {[%emt 0:00:00]} Rc1 {[%emt 0:00:00]} 44. Bd2 {[%emt 0:00:00]} Rc2 {[%emt 0:00:00]} 45. Ke1 {[%emt 0:00:00]} c3 {[%emt 0:00:00]} 46. Bg5 {[%emt 0:00:00]} Nb4 {[%emt 0:00:00]} 47. Ne5 {[%emt 0:08:44]} Rg2 {[%emt 0:00:00]} 48. Bf4 {[%emt 0:01:10]} d4 {[%emt 0:03:50]} 49. Bf5 {[%emt 0:01:45]} Ra2 {[%emt 0:03:52]} 50. Nd3 {[%emt 0:02:53]} Nxd3+ {[%emt 0:02:10]} 51. Bxd3 {[%emt 0:00:31]} Rxa5 {[%emt 0:00:15]} 52. Kd1 {[%emt 0:00:16]} Ra2 {[%emt 0:01:00]} 53. Kc1 {[%emt 0:00:19]} h5 {[%emt 0:00:29]} 54. Bg5 {[%emt 0:01:26]} a5 {[%emt 0:00:49]} 55. Bf6 {[%emt 0:00:31]} Rd2 {[%emt 0:00:15]} 56. Bc2 {[%emt 0:00:52]} h4 57. Bxh4 {[%emt 0:00:30]} d3 58. Bd1 {[%emt 0:00:30]} Rh2 59. Kb1 {[%emt 0:00:30]} c2+ 0-1

[Event "2nd Hersonissos Open 2018"]
[Site "Hersonissos"]
[Date "2018.06.21"]
[Round "6"]
[White "Bit-Narva, David"]
[Black "Risting, Eivind Olav"]
[Result "1-0"]
[ECO "B10"]
[WhiteElo "1926"]
[BlackElo "2301"]
[Annotator "NA"]
[PlyCount "51"]
[EventDate "2018.06.16"]
[EventType "swiss"]
[EventCountry "GRE"]
[SourceTitle "playchess.com"]
[Source "ChessBase"]
[SourceQuality "1"]
[TimeControl "5400+30"]

1. e4 {[%emt 0:00:00]} c6 {[%emt 0:02:10]} 2. d3 {[%emt 0:00:03]} d5 {[%emt 0:00:11]} 3. Nd2 {[%emt 0:00:08]} e5 {[%emt 0:01:48]} 4. Ngf3 {[%emt 0:00:41]} Bd6 {[%emt 0:00:15]} 5. d4 {[%emt 0:01:14]} exd4 {[%emt 0:02:57]} 6. exd5 {[%emt 0:00:58]} cxd5 {[%emt 0:04:45]} 7. Nxd4 {[%emt 0:02:20]} Nc6 {[%emt 0:00:37]} 8. Nxc6 {[%emt 0:05:52]} bxc6 {[%emt 0:00:05]} 9. Bd3 {[%emt 0:02:06]} Nf6 {[%emt 0:06:48]} 10. O-O {[%emt 0:04:18]} O-O {[%emt 0:00:26]} 11. c4 {[%emt 0:02:32]} d4 {[%emt 0:13:44]} 12. Qf3 {[%emt 0:02:25]} Bg4 {[%emt 0:19:25]} 13. Qxc6 {[%emt 0:01:28]} Rc8 {[%emt 0:00:11]} 14. Qb5 {[%emt 0:23:55]} Rc5 {[%emt 0:14:19]} 15. Qb7 {[%emt 0:02:56]} Rc7 {[%emt 0:10:47]} 16. Qb5 {[%emt 0:01:34]} Qe7 {[%emt 0:01:30]} 17. Nb3 {[%emt 0:02:43]} h6 {[%emt 0:07:25]} 18. Bd2 {[%emt 0:05:11]} Bd7 {[%emt 0:01:09]} 19. Qa5 {[%emt 0:03:26]} Ng4 {[%emt 0:00:50]} 20. f4 {[%emt 0:15:43]} Qh4 {[%emt 0:02:13]} 21. h3 {[%emt 0:00:04]} Ne3 {[%emt 0:00:10]} 22. Be1 {[%emt 0:06:16]} Qd8 {[%emt 0:07:13]} 23. Rf2 {[%emt 0:02:54]} Nxc4 {[%emt 0:02:13]} 24. Qd5 {[%emt 0:02:07]} Be6 {[%emt 0:00:32]} 25. Qe4 {[%emt 0:01:06]} Ne3 {[%emt 0:00:45]} 26. Qh7# {[%emt 0:00:08]} 1-0

[Event "2nd Hersonissos Open 2018"]
[Site "Hersonissos"]
[Date "2018.06.21"]
[Round "6"]
[White "Maris, Ioannis"]
[Black "Fragiadakis, Emanouel"]
[Result "1-0"]
[ECO "C54"]
[WhiteElo "1915"]
[BlackElo "1813"]
[Annotator "NA"]
[PlyCount "55"]
[EventDate "2018.06.16"]
[EventType "swiss"]
[EventCountry "GRE"]
[SourceTitle "playchess.com"]
[Source "ChessBase"]
[SourceQuality "1"]
[TimeControl "5400+30"]

1. e4 {[%emt 0:00:00]} e5 {[%emt 0:00:10]} 2. Nf3 {[%emt 0:00:11]} Nc6 {[%emt 0:00:03]} 3. Bc4 {[%emt 0:00:34]} Bc5 {[%emt 0:00:04]} 4. c3 {[%emt 0:00:34]} Nf6 {[%emt 0:00:12]} 5. d3 {[%emt 0:01:23]} a6 {[%emt 0:00:41]} 6. b4 {[%emt 0:01:43]} Ba7 {[%emt 0:02:31]} 7. O-O {[%emt 0:01:14]} O-O {[%emt 0:02:17]} 8. Bg5 {[%emt 0:01:52]} h6 {[%emt 0:00:39]} 9. Bh4 {[%emt 0:00:11]} d6 {[%emt 0:00:31]} 10. h3 {[%emt 0:00:43]} Be6 {[%emt 0:01:19]} 11. Na3 {[%emt 0:02:17]} Qe7 {[%emt 0:04:38]} 12. Qc1 {[%emt 0:05:32]} Bxc4 {[%emt 0:08:29]} 13. Nxc4 {[%emt 0:00:59]} Qe6 {[%emt 0:01:31]} 14. Ne3 {[%emt 0:01:40]} Ne7 {[%emt 0:02:02]} 15. Qd2 {[%emt 0:14:04]} Nh5 {[%emt 0:20:27]} 16. Bxe7 {[%emt 0:12:46]} Qxe7 {[%emt 0:00:02]} 17. Nf5 {[%emt 0:00:13]} Qe6 {[%emt 0:05:42]} 18. Kh2 {[%emt 0:01:20]} d5 {[%emt 0:07:43]} 19. g3 {[%emt 0:07:42]} dxe4 {[%emt 0:01:18]} 20. dxe4 {[%emt 0:00:04]} Rad8 {[%emt 0:19:32]} 21. Qe2 {[%emt 0:00:24]} Rd7 {[%emt 0:07:35]} 22. Nxe5 {[%emt 0:11:50]} Qxe5 {[%emt 0:00:19]} 23. Qxh5 {[%emt 0:00:04]} Qxc3 {[%emt 0:02:18]} 24. Qg4 {[%emt 0:00:53]} Rd2 {[%emt 0:01:52]} 25. Nxh6+ {[%emt 0:00:38]} Kh7 {[%emt 0:00:11]} 26. Nf5 {[%emt 0:00:19]} Bxf2 {[%emt 0:00:56]} 27. Qh5+ {[%emt 0:00:18]} Kg8 {[%emt 0:00:18]} 28. Ne7# {[%emt 0:00:05]} 1-0

[Event "2nd Hersonissos Open 2018"]
[Site "Hersonissos"]
[Date "2018.06.21"]
[Round "6"]
[White "Bras, Emanouel"]
[Black "Koutsourakis, Ioannis"]
[Result "1/2-1/2"]
[ECO "D02"]
[WhiteElo "1859"]
[BlackElo "1560"]
[Annotator "NA"]
[PlyCount "83"]
[EventDate "2018.06.16"]
[EventType "swiss"]
[EventCountry "GRE"]
[SourceTitle "playchess.com"]
[Source "ChessBase"]
[SourceQuality "1"]
[TimeControl "5400+30"]

1. d4 {[%emt 0:04:27]} d5 {[%emt 0:00:07]} 2. Nf3 {[%emt 0:00:17]} Nf6 {[%emt 0:00:11]} 3. Bf4 {[%emt 0:00:11]} c5 {[%emt 0:00:37]} 4. e3 {[%emt 0:00:46]} e6 {[%emt 0:00:09]} 5. Be2 {[%emt 0:00:40]} Nc6 {[%emt 0:03:33]} 6. O-O {[%emt 0:00:33]} Bd6 {[%emt 0:03:38]} 7. Bg3 {[%emt 0:01:43]} O-O {[%emt 0:04:48]} 8. Nc3 {[%emt 0:00:26]} a6 {[%emt 0:03:14]} 9. Ne5 {[%emt 0:03:28]} Ne7 {[%emt 0:08:16]} 10. Ng4 {[%emt 0:03:05]} Nxg4 {[%emt 0:01:49]} 11. Bxg4 {[%emt 0:00:38]} b5 {[%emt 0:03:16]} 12. Ne2 {[%emt 0:04:32]} Bb7 {[%emt 0:04:45]} 13. c3 {[%emt 0:01:31]} Ng6 {[%emt 0:05:09]} 14. Bh5 {[%emt 0:01:46]} Ne7 {[%emt 0:02:05]} 15. Bf3 {[%emt 0:06:04]} Qb6 {[%emt 0:02:54]} 16. Bxd6 {[%emt 0:02:13]} Qxd6 {[%emt 0:00:10]} 17. g3 {[%emt 0:02:31]} c4 {[%emt 0:02:32]} 18. h4 {[%emt 0:05:10]} f5 {[%emt 0:11:31]} 19. Bg2 {[%emt 0:01:58]} Rf6 {[%emt 0:04:22]} 20. Nf4 {[%emt 0:01:44]} Nc6 {[%emt 0:02:20]} 21. Qd2 {[%emt 0:12:23]} a5 {[%emt 0:01:26]} 22. a3 {[%emt 0:01:22]} Rb8 {[%emt 0:02:12]} 23. Rfb1 {[%emt 0:06:16]} Rff8 {[%emt 0:08:15]} 24. Qd1 {[%emt 0:01:23]} a4 {[%emt 0:01:29]} 25. Qh5 {[%emt 0:04:46]} Rf6 {[%emt 0:03:22]} 26. Re1 {[%emt 0:03:04]} Ne7 {[%emt 0:03:23]} 27. Qd1 {[%emt 0:01:44]} Ng6 {[%emt 0:02:25]} 28. Nh3 {[%emt 0:01:00]} Bc6 {[%emt 0:04:33]} 29. Ng5 {[%emt 0:01:14]} Be8 {[%emt 0:01:46]} 30. Nf3 {[%emt 0:02:24]} Ne7 {[%emt 0:01:31]} 31. Ne5 {[%emt 0:00:23]} Nc6 {[%emt 0:00:11]} 32. f4 {[%emt 0:00:45]} h5 {[%emt 0:01:15]} 33. Kf2 {[%emt 0:05:22]} g6 {[%emt 0:00:45]} 34. Bf3 {[%emt 0:03:10]} Kg7 {[%emt 0:04:07]} 35. Rg1 {[%emt 0:00:43]} Kf8 {[%emt 0:02:09]} 36. Qe2 {[%emt 0:00:50]} Rb7 {[%emt 0:00:53]} 37. Rg2 {[%emt 0:00:53]} Rh7 {[%emt 0:00:24]} 38. Rag1 {[%emt 0:00:37]} Ke7 {[%emt 0:00:33]} 39. Ra1 {[%emt 0:01:59]} Nd8 {[%emt 0:01:41]} 40. Rgg1 {[%emt 0:00:00]} Rh8 {[%emt 0:00:00]} 41. Bg2 {[%emt 0:00:00]} Nb7 {[%emt 0:00:00]} 42. Bf3 {[%emt 0:00:00]} 1/2-1/2

[Event "2nd Hersonissos Open 2018"]
[Site "Hersonissos"]
[Date "2018.06.21"]
[Round "6"]
[White "Warnk, Torsten"]
[Black "Mateev, Kaloyan Mateev"]
[Result "0-1"]
[ECO "A41"]
[WhiteElo "1853"]
[BlackElo "1539"]
[Annotator "NA"]
[PlyCount "154"]
[EventDate "2018.06.16"]
[EventType "swiss"]
[EventCountry "GRE"]
[SourceTitle "playchess.com"]
[Source "ChessBase"]
[SourceQuality "1"]
[TimeControl "5400+30"]

1. d4 {[%emt 0:01:55]} d6 {[%emt 0:01:54]} 2. Nf3 {[%emt 0:00:06]} Nf6 {[%emt 0:00:18]} 3. c4 Bf5 4. Nc3 {[%emt 0:03:58]} Nbd7 {[%emt 0:00:51]} 5. Bg5 {[%emt 0:02:46]} c5 {[%emt 0:04:22]} 6. d5 {[%emt 0:02:30]} h6 {[%emt 0:03:27]} 7. Bh4 {[%emt 0:00:10]} g5 {[%emt 0:01:20]} 8. Bg3 {[%emt 0:00:07]} Bg7 {[%emt 0:00:04]} 9. e3 {[%emt 0:04:25]} Ne4 {[%emt 0:03:29]} 10. Nxe4 {[%emt 0:19:06]} Bxe4 {[%emt 0:00:30]} 11. Nd2 {[%emt 0:00:12]} Bg6 {[%emt 0:04:12]} 12. e4 {[%emt 0:20:18]} Bxb2 {[%emt 0:00:27]} 13. Rb1 {[%emt 0:00:16]} Bc3 {[%emt 0:00:21]} 14. Bd3 {[%emt 0:02:28]} Qa5 {[%emt 0:06:19]} 15. Qc2 {[%emt 0:01:48]} Rb8 {[%emt 0:11:24]} 16. Ke2 {[%emt 0:01:50]} Bxd2 {[%emt 0:02:05]} 17. Qxd2 {[%emt 0:00:05]} Qxd2+ {[%emt 0:00:21]} 18. Kxd2 {[%emt 0:00:03]} O-O {[%emt 0:01:51]} 19. h4 {[%emt 0:00:53]} Kg7 {[%emt 0:04:41]} 20. f4 gxf4 {[%emt 0:03:28]} 21. Bxf4 {[%emt 0:02:55]} f5 {[%emt 0:00:12]} 22. exf5 {[%emt 0:05:27]} Bxf5 {[%emt 0:01:52]} 23. Rhe1 {[%emt 0:03:25]} Ne5 {[%emt 0:11:24]} 24. Bxe5+ {[%emt 0:00:38]} dxe5 {[%emt 0:00:08]} 25. Rxe5 {[%emt 0:00:12]} e6 {[%emt 0:14:08]} 26. dxe6 {[%emt 0:03:18]} Bxd3 {[%emt 0:01:30]} 27. Kxd3 {[%emt 0:00:31]} Kf6 {[%emt 0:02:42]} 28. Re2 {[%emt 0:01:31]} Ke7 {[%emt 0:00:31]} 29. Rbe1 {[%emt 0:01:56]} Rbd8+ {[%emt 0:00:34]} 30. Kc3 {[%emt 0:00:35]} Rd4 {[%emt 0:03:15]} 31. g3 {[%emt 0:02:30]} Rg8 {[%emt 0:02:48]} 32. Re3 {[%emt 0:05:39]} Rgg4 {[%emt 0:00:15]} 33. Rf1 {[%emt 0:02:00]} Rxc4+ {[%emt 0:00:17]} 34. Kb2 {[%emt 0:00:53]} Rg7 {[%emt 0:01:10]} 35. Rd1 {[%emt 0:05:24]} Rd4 {[%emt 0:00:27]} 36. Rf1 {[%emt 0:00:45]} Rd6 {[%emt 0:01:27]} 37. Rf5 {[%emt 0:02:02]} b6 {[%emt 0:02:12]} 38. Ra3 {[%emt 0:02:19]} Kxe6 {[%emt 0:00:18]} 39. Rh5 {[%emt 0:00:36]} Rd2+ {[%emt 0:07:59]} 40. Kc1 {[%emt 0:00:51]} Rg2 {[%emt 0:00:42]} 41. Rxh6+ {[%emt 0:00:00]} Kf5 {[%emt 0:00:00]} 42. Rd6 {[%emt 0:00:00]} R2xg3 {[%emt 0:00:00]} 43. Ra4 {[%emt 0:00:00]} R3g4 {[%emt 0:00:00]} 44. Rd5+ {[%emt 0:00:00]} Ke6 {[%emt 0:00:00]} 45. Rxg4 {[%emt 0:00:00]} Rxg4 {[%emt 0:00:00]} 46. Rh5 {[%emt 0:00:00]} Kf6 {[%emt 0:00:00]} 47. Kc2 {[%emt 0:00:00]} Rg7 {[%emt 0:00:00]} 48. Kc3 {[%emt 0:00:00]} Kg6 {[%emt 0:00:00]} 49. Rd5 {[%emt 0:00:00]} Rh7 {[%emt 0:00:00]} 50. Kb3 {[%emt 0:00:00]} Rxh4 {[%emt 0:00:00]} 51. Rd7 {[%emt 0:00:00]} Rh7 {[%emt 0:00:00]} 52. Rd2 {[%emt 0:00:00]} Kf5 {[%emt 0:00:00]} 53. a3 {[%emt 0:00:00]} Re7 {[%emt 0:00:00]} 54. Kc4 {[%emt 0:00:00]} a6 {[%emt 0:00:00]} 55. Rd6 {[%emt 0:00:00]} Re6 {[%emt 0:00:00]} 56. Rd7 {[%emt 0:00:00]} Re4+ {[%emt 0:00:00]} 57. Kb3 {[%emt 0:00:00]} b5 {[%emt 0:00:00]} 58. Rd5+ {[%emt 0:00:00]} Re5 {[%emt 0:00:00]} 59. Rd6 {[%emt 0:00:00]} a5 {[%emt 0:00:00]} 60. Rh6 {[%emt 0:02:17]} a4+ {[%emt 0:00:00]} 61. Kb2 {[%emt 0:00:27]} Ke4 {[%emt 0:01:16]} 62. Kc3 {[%emt 0:00:58]} Rf5 {[%emt 0:04:48]} 63. Rb6 {[%emt 0:00:52]} Rf3+ {[%emt 0:00:13]} 64. Kc2 {[%emt 0:00:18]} Rb3 {[%emt 0:00:31]} 65. Rb8 {[%emt 0:00:52]} Kd4 {[%emt 0:00:27]} 66. Rh8 {[%emt 0:00:10]} Rxa3 {[%emt 0:00:21]} 67. Rh4+ {[%emt 0:00:09]} Kd5 {[%emt 0:00:16]} 68. Rh5+ {[%emt 0:00:17]} Kc6 {[%emt 0:00:22]} 69. Rh6+ {[%emt 0:00:05]} Kb7 {[%emt 0:00:10]} 70. Rh5 {[%emt 0:00:21]} Kb6 {[%emt 0:00:09]} 71. Rh6+ {[%emt 0:00:19]} Ka5 {[%emt 0:00:08]} 72. Rh5 {[%emt 0:00:16]} c4 {[%emt 0:00:15]} 73. Rg5 {[%emt 0:00:10]} Rb3 {[%emt 0:00:12]} 74. Rh5 {[%emt 0:00:21]} a3 {[%emt 0:00:54]} 75. Rg5 {[%emt 0:00:10]} a2 {[%emt 0:00:32]} 76. Rg8 {[%emt 0:00:36]} Kb4 {[%emt 0:00:20]} 77. Ra8 {[%emt 0:00:06]} Ra3 {[%emt 0:00:17]} 0-1

[Event "2nd Hersonissos Open 2018"]
[Site "Hersonissos"]
[Date "2018.06.21"]
[Round "6"]
[White "Storkebaum, Ulrike"]
[Black "Alexandrakis, Georgios"]
[Result "1-0"]
[ECO "B40"]
[WhiteElo "1825"]
[BlackElo "1299"]
[Annotator "NA"]
[PlyCount "127"]
[EventDate "2018.06.16"]
[EventType "swiss"]
[EventCountry "GRE"]
[SourceTitle "playchess.com"]
[Source "ChessBase"]
[SourceQuality "1"]
[TimeControl "5400+30"]

1. e4 {[%emt 0:00:00]} c5 {[%emt 0:00:08]} 2. Nf3 {[%emt 0:00:00]} e6 {[%emt 0:00:10]} 3. d4 {[%emt 0:00:00]} cxd4 {[%emt 0:00:03]} 4. Nxd4 {[%emt 0:00:00]} Nf6 {[%emt 0:00:06]} 5. Nc3 {[%emt 0:00:34]} Bb4 {[%emt 0:02:57]} 6. Bd3 {[%emt 0:00:53]} Nc6 {[%emt 0:03:41]} 7. Nxc6 {[%emt 0:02:18]} dxc6 {[%emt 0:02:19]} 8. O-O {[%emt 0:00:58]} O-O {[%emt 0:06:48]} 9. Bg5 {[%emt 0:00:59]} Be7 {[%emt 0:01:21]} 10. Be3 {[%emt 0:08:36]} e5 {[%emt 0:06:51]} 11. h3 {[%emt 0:01:49]} Be6 {[%emt 0:03:51]} 12. Ne2 {[%emt 0:13:51]} Qc7 {[%emt 0:06:57]} 13. Ng3 {[%emt 0:03:38]} Rfd8 {[%emt 0:06:23]} 14. Qe2 {[%emt 0:00:41]} c5 {[%emt 0:00:27]} 15. Bc4 {[%emt 0:01:45]} Qc6 {[%emt 0:02:35]} 16. Bxe6 {[%emt 0:02:03]} Qxe6 {[%emt 0:01:39]} 17. c4 {[%emt 0:01:00]} Rd7 {[%emt 0:12:04]} 18. f3 {[%emt 0:02:03]} h5 {[%emt 0:08:50]} 19. b3 {[%emt 0:04:04]} h4 {[%emt 0:04:11]} 20. Nf5 {[%emt 0:00:55]} Nh5 {[%emt 0:01:15]} 21. Qf2 {[%emt 0:04:38]} Qf6 {[%emt 0:06:03]} 22. Rfd1 {[%emt 0:01:34]} Rc7 {[%emt 0:01:16]} 23. Rd5 {[%emt 0:05:20]} b6 {[%emt 0:01:29]} 24. Rad1 {[%emt 0:00:17]} Rac8 {[%emt 0:03:57]} 25. Qd2 {[%emt 0:05:14]} a6 {[%emt 0:05:48]} 26. Nxe7+ {[%emt 0:02:51]} Qxe7 {[%emt 0:00:40]} 27. Bg5 {[%emt 0:01:56]} f6 {[%emt 0:02:31]} 28. Bxh4 {[%emt 0:00:39]} Kf7 {[%emt 0:01:53]} 29. Rd6 {[%emt 0:00:59]} Rb8 {[%emt 0:01:05]} 30. Bf2 {[%emt 0:05:13]} Ke8 {[%emt 0:02:13]} 31. Qd5 {[%emt 0:00:52]} Kf8 {[%emt 0:00:35]} 32. Be3 {[%emt 0:01:42]} Rcb7 {[%emt 0:01:05]} 33. Kf2 {[%emt 0:01:10]} Nf4 {[%emt 0:00:25]} 34. Bxf4 {[%emt 0:00:46]} exf4 {[%emt 0:00:03]} 35. Qf5 {[%emt 0:03:29]} Qe5 {[%emt 0:01:46]} 36. Qh7 {[%emt 0:04:45]} Re8 {[%emt 0:03:57]} 37. R1d2 {[%emt 0:02:30]} Kf7 {[%emt 0:00:42]} 38. R6d5 {[%emt 0:02:01]} Qe6 {[%emt 0:00:42]} 39. Qh5+ {[%emt 0:01:06]} Kf8 {[%emt 0:00:35]} 40. Qf5 {[%emt 0:00:00]} Qxf5 {[%emt 0:00:00]} 41. Rxf5 {[%emt 0:00:00]} Kf7 {[%emt 0:00:00]} 42. Rxf4 {[%emt 0:00:00]} g6 {[%emt 0:00:00]} 43. Rh4 {[%emt 0:00:00]} Kg7 {[%emt 0:00:00]} 44. Rd6 {[%emt 0:00:00]} Reb8 {[%emt 0:00:00]} 45. Rf4 {[%emt 0:00:00]} Rf7 {[%emt 0:00:00]} 46. g4 {[%emt 0:00:00]} b5 {[%emt 0:00:00]} 47. cxb5 {[%emt 0:00:00]} axb5 {[%emt 0:00:00]} 48. g5 {[%emt 0:00:00]} fxg5 {[%emt 0:00:00]} 49. Rxf7+ {[%emt 0:00:00]} Kxf7 {[%emt 0:00:00]} 50. Rc6 {[%emt 0:00:00]} c4 {[%emt 0:00:00]} 51. Kg3 {[%emt 0:00:00]} cxb3 {[%emt 0:00:00]} 52. axb3 {[%emt 0:00:00]} b4 {[%emt 0:00:00]} 53. h4 {[%emt 0:00:00]} gxh4+ {[%emt 0:00:00]} 54. Kxh4 {[%emt 0:00:00]} Rb5 {[%emt 0:00:00]} 55. Kg4 {[%emt 0:00:00]} Kg7 {[%emt 0:00:00]} 56. f4 {[%emt 0:00:18]} Kf7 {[%emt 0:00:00]} 57. e5 {[%emt 0:00:32]} Rb7 {[%emt 0:00:00]} 58. Kg5 {[%emt 0:01:33]} Kg7 {[%emt 0:03:48]} 59. Rxg6+ {[%emt 0:00:17]} Kh7 {[%emt 0:01:24]} 60. Rh6+ {[%emt 0:04:43]} Kg7 {[%emt 0:01:04]} 61. f5 {[%emt 0:01:17]} Rb5 {[%emt 0:01:19]} 62. f6+ {[%emt 0:01:09]} Kf7 {[%emt 0:00:48]} 63. Kf5 {[%emt 0:00:27]} Rc5 {[%emt 0:00:22]} 64. Rh7+ {[%emt 0:01:04]} 1-0

[Event "2nd Hersonissos Open 2018"]
[Site "Hersonissos"]
[Date "2018.06.21"]
[Round "6"]
[White "Afsari-Rad, Aidin"]
[Black "Djingarova, Emilia"]
[Result "0-1"]
[ECO "B06"]
[WhiteElo "1802"]
[BlackElo "2218"]
[Annotator "NA"]
[PlyCount "40"]
[EventDate "2018.06.16"]
[EventType "swiss"]
[EventCountry "GRE"]
[SourceTitle "playchess.com"]
[Source "ChessBase"]
[SourceQuality "1"]
[TimeControl "5400+30"]

1. e4 {[%emt 0:06:40]} g6 {[%emt 0:00:36]} 2. d4 {[%emt 0:00:36]} Bg7 {[%emt 0:00:06]} 3. Nf3 {[%emt 0:05:32]} d6 {[%emt 0:00:18]} 4. Bd3 {[%emt 0:02:40]} a6 {[%emt 0:00:26]} 5. a4 {[%emt 0:03:29]} b6 {[%emt 0:00:56]} 6. c3 {[%emt 0:13:31]} Nd7 {[%emt 0:01:15]} 7. O-O {[%emt 0:01:17]} e5 {[%emt 0:03:42]} 8. Re1 {[%emt 0:09:12]} Ngf6 {[%emt 0:00:49]} 9. Be3 {[%emt 0:04:49]} O-O {[%emt 0:03:33]} 10. Qc1 {[%emt 0:00:48]} Re8 {[%emt 0:07:32]} 11. Bh6 {[%emt 0:00:12]} Nf8 {[%emt 0:08:50]} 12. Bxg7 {[%emt 0:05:56]} Kxg7 {[%emt 0:00:18]} 13. Nbd2 {[%emt 0:06:21]} Nh5 {[%emt 0:03:55]} 14. g3 {[%emt 0:00:57]} Bg4 {[%emt 0:01:44]} 15. Bf1 {[%emt 0:00:50]} Qd7 {[%emt 0:12:27]} 16. Bg2 {[%emt 0:03:47]} Bh3 {[%emt 0:02:49]} 17. dxe5 {[%emt 0:03:48]} dxe5 {[%emt 0:00:27]} 18. Nc4 {[%emt 0:00:07]} Bxg2 {[%emt 0:06:03]} 19. Kxg2 {[%emt 0:02:45]} Nf4+ {[%emt 0:00:38]} 20. Kg1 {[%emt 0:13:20]} Nd3 {[%emt 0:00:28]} 0-1